[Event "4NCL Hull GM 2021"]
[Site "Hull"]
[Date "2021.10.23"]
[Round "6.5"]
[White "Davies, Nigel R"]
[Black "Czopor, Maciej"]
[Result "1/2-1/2"]
[ECO "A09"]
[WhiteElo "2475"]
[BlackElo "2411"]
[Annotator "ChessBase"]
[PlyCount "101"]
[EventDate "2021.10.20"]
[EventType "tourn"]
[EventCountry "ENG"]
[SourceTitle "playchess.com"]
[Source "ChessBase"]
[SourceQuality "1"]
[TimeControl "5400+30"]

1. Nf3 {[%emt 0:00:08]} Nf6 {[%emt 0:00:07]} 2. c4 {[%emt 0:00:07]} e6 {[%emt 0:00:12]} 3. g3 {[%emt 0:00:10]} d5 {[%emt 0:00:05]} 4. Bg2 {[%emt 0:00:09]} d4 {[%emt 0:01:25]} 5. O-O {[%emt 0:02:10]} c5 {[%emt 0:00:18]} 6. d3 {[%emt 0:04:38]} Nc6 {[%emt 0:00:22]} 7. e4 {[%emt 0:00:33]} dxe3 {[%emt 0:07:16]} 8. fxe3 {[%emt 0:05:55]} Be7 {[%emt 0:01:32]} 9. Nc3 {[%emt 0:00:08]} O-O {[%emt 0:01:14]} 10. b3 {[%emt 0:07:59]} Qc7 {[%emt 0:14:08]} 11. Bb2 {[%emt 0:00:16]} Rd8 {[%emt 0:00:40]} 12. Qe2 {[%emt 0:01:12]} a6 {[%emt 0:07:57]} 13. Rad1 {[%emt 0:02:55]} b5 {[%emt 0:02:55]} 14. cxb5 {[%emt 0:06:58]} axb5 {[%emt 0:00:04]} 15. Nxb5 {[%emt 0:00:07]} Qb6 {[%emt 0:00:04]} 16. Nc3 {[%emt 0:01:42]} Ba6 {[%emt 0:01:11]} 17. Ng5 {[%emt 0:05:26]} Ra7 {[%emt 0:03:17]} 18. Na4 {[%emt 0:09:05]} Qc7 {[%emt 0:03:39]} 19. Bxf6 {[%emt 0:02:35]} Bxf6 {[%emt 0:01:17]} 20. Ne4 {[%emt 0:02:06]} Be7 {[%emt 0:00:52]} 21. Naxc5 {[%emt 0:02:00]} Nb4 {[%emt 0:00:17]} 22. Nxa6 {[%emt 0:01:24]} Rxa6 {[%emt 0:00:05]} 23. a4 {[%emt 0:00:10]} f5 {[%emt 0:00:34]} 24. Nf2 {[%emt 0:00:06]} Qc3 {[%emt 0:05:49]} 25. Rb1 {[%emt 0:07:31]} Nxd3 {[%emt 0:01:10]} 26. Nxd3 {[%emt 0:03:11]} Qxd3 {[%emt 0:01:41]} 27. Qxd3 {[%emt 0:02:11]} Rxd3 {[%emt 0:00:06]} 28. e4 {[%emt 0:00:07]} g6 {[%emt 0:02:34]} 29. Rfd1 {[%emt 0:00:43]} Rc3 {[%emt 0:04:36]} 30. exf5 {[%emt 0:01:01]} gxf5 {[%emt 0:00:18]} 31. Bf1 {[%emt 0:00:06]} Rb6 {[%emt 0:02:53]} 32. Bc4 {[%emt 0:00:09]} Bb4 {[%emt 0:01:02]} 33. a5 {[%emt 0:05:14]} Bxa5 {[%emt 0:00:30]} 34. Ra1 {[%emt 0:00:06]} Bb4 {[%emt 0:02:46]} 35. Rd7 {[%emt 0:00:21]} Bc5+ {[%emt 0:01:55]} 36. Kh1 {[%emt 0:00:23]} Rb8 {[%emt 0:03:45]} 37. Bxe6+ {[%emt 0:00:12]} Kh8 {[%emt 0:01:10]} 38. Rf1 {[%emt 0:00:58]} Rf8 {[%emt 0:00:43]} 39. Bxf5 {[%emt 0:06:33]} Rxb3 {[%emt 0:00:08]} 40. Rxh7+ {[%emt 0:00:13]} Kg8 {[%emt 0:00:03]} 41. Rc7 {[%emt 0:00:29]} Rb5 {[%emt 0:00:13]} 42. g4 {[%emt 0:00:36]} Rd8 {[%emt 0:02:10]} 43. Bd7 {[%emt 0:09:09]} Bd6 {[%emt 0:00:58]} 44. Be6+ {[%emt 0:02:13]} Kh8 {[%emt 0:00:04]} 45. Rc3 {[%emt 0:02:24]} Rb2 {[%emt 0:00:53]} 46. Rh3+ {[%emt 0:00:08]} Kg7 {[%emt 0:00:03]} 47. g5 {[%emt 0:04:53]} Bf4 {[%emt 0:01:13]} 48. Bf5 {[%emt 0:05:14]} Rdd2 {[%emt 0:04:36]} 49. g6 {[%emt 0:01:15]} Rxh2+ {[%emt 0:01:15]} 50. Rxh2 {[%emt 0:00:04]} Bxh2 {[%emt 0:02:41]} 51. Rb1 {[%emt 0:00:23]} 1/2-1/2

[Event "4NCL Hull GM 2021"]
[Site "Hull"]
[Date "2021.10.23"]
[Round "7.2"]
[White "Turner, Matthew J"]
[Black "Davies, Nigel R"]
[Result "1/2-1/2"]
[ECO "E06"]
[WhiteElo "2471"]
[BlackElo "2475"]
[Annotator "ChessBase"]
[PlyCount "20"]
[EventDate "2021.10.20"]
[EventType "tourn"]
[EventCountry "ENG"]
[SourceTitle "playchess.com"]
[Source "ChessBase"]
[SourceQuality "1"]
[TimeControl "5400+30"]

1. d4 {[%emt 0:00:09]} Nf6 {[%emt 0:00:07]} 2. Nf3 {[%emt 0:00:09]} e6 {[%emt 0:00:15]} 3. g3 {[%emt 0:00:11]} d5 {[%emt 0:00:10]} 4. Bg2 {[%emt 0:00:12]} Be7 {[%emt 0:00:06]} 5. O-O {[%emt 0:00:20]} O-O {[%emt 0:00:06]} 6. c4 {[%emt 0:00:33]} c6 {[%emt 0:00:06]} 7. Nbd2 {[%emt 0:02:08]} b6 {[%emt 0:00:12]} 8. Qc2 {[%emt 0:00:18]} Bb7 {[%emt 0:00:24]} 9. e4 {[%emt 0:00:24]} Na6 {[%emt 0:00:12]} 10. b3 {[%emt 0:01:30]} c5 {[%emt 0:06:06]} 1/2-1/2

[Event "4NCL Hull GM 2021"]
[Site "Hull"]
[Date "2021.10.24"]
[Round "8.1"]
[White "Willow, Jonah B"]
[Black "Clarke, Brandon G I"]
[Result "1-0"]
[ECO "B01"]
[WhiteElo "2353"]
[BlackElo "2442"]
[Annotator "ChessBase"]
[PlyCount "77"]
[EventDate "2021.10.20"]
[EventType "tourn"]
[EventCountry "ENG"]
[SourceTitle "playchess.com"]
[Source "ChessBase"]
[SourceQuality "1"]
[TimeControl "5400+30"]

1. e4 {[%emt 0:00:01]} d5 {[%emt 0:11:44]} 2. exd5 {[%emt 0:00:26]} Qxd5 {[%emt 0:00:10]} 3. Nc3 {[%emt 0:00:19]} Qd6 {[%emt 0:00:08]} 4. d4 {[%emt 0:00:45]} Nf6 {[%emt 0:00:16]} 5. Nf3 {[%emt 0:02:31]} c6 {[%emt 0:00:14]} 6. Ne5 {[%emt 0:03:13]} Nbd7 {[%emt 0:00:27]} 7. Nc4 {[%emt 0:02:23]} Qc7 {[%emt 0:00:29]} 8. Qf3 {[%emt 0:02:12]} Nb6 {[%emt 0:00:36]} 9. Ne5 {[%emt 0:03:41]} e6 {[%emt 0:15:34]} 10. Bd3 {[%emt 0:25:48]} Nbd7 {[%emt 0:10:08]} 11. Nc4 {[%emt 0:03:32]} Nb6 {[%emt 0:05:22]} 12. Bf4 {[%emt 0:02:52]} Qd8 {[%emt 0:00:22]} 13. O-O-O {[%emt 0:02:01]} Nxc4 {[%emt 0:00:24]} 14. Bxc4 {[%emt 0:00:08]} Be7 {[%emt 0:04:40]} 15. Be5 {[%emt 0:01:46]} a5 {[%emt 0:01:38]} 16. g4 {[%emt 0:01:58]} O-O {[%emt 0:01:59]} 17. Rhg1 {[%emt 0:10:12]} Nd5 {[%emt 0:02:59]} 18. Nxd5 {[%emt 0:06:05]} exd5 {[%emt 0:05:53]} 19. Bd3 {[%emt 0:00:14]} Bd6 {[%emt 0:11:14]} 20. g5 {[%emt 0:02:50]} Bxe5 {[%emt 0:01:01]} 21. dxe5 {[%emt 0:00:11]} Qe7 {[%emt 0:00:39]} 22. Qg3 {[%emt 0:07:52]} a4 {[%emt 0:01:46]} 23. a3 {[%emt 0:01:25]} b5 {[%emt 0:00:04]} 24. c3 {[%emt 0:00:47]} Rb8 {[%emt 0:03:35]} 25. Bc2 {[%emt 0:01:47]} Rd8 {[%emt 0:01:24]} 26. Rd4 {[%emt 0:01:27]} g6 {[%emt 0:02:45]} 27. Rh4 {[%emt 0:01:04]} c5 {[%emt 0:02:39]} 28. Rh6 {[%emt 0:00:33]} b4 {[%emt 0:10:46]} 29. e6 {[%emt 0:00:37]} Bxe6 {[%emt 0:00:53]} 30. Qh4 {[%emt 0:00:01]} Qd6 {[%emt 0:01:25]} 31. Re1 {[%emt 0:02:10]} Kf8 {[%emt 0:03:38]} 32. Rxh7 {[%emt 0:00:05]} bxc3 {[%emt 0:01:02]} 33. Qh6+ {[%emt 0:00:44]} Ke8 {[%emt 0:00:19]} 34. Rxf7 {[%emt 0:00:40]} Kxf7 {[%emt 0:00:41]} 35. Bxg6+ {[%emt 0:00:16]} Kg8 {[%emt 0:00:14]} 36. Bh7+ {[%emt 0:00:03]} Kf7 {[%emt 0:00:29]} 37. Bg6+ {[%emt 0:00:23]} Kg8 {[%emt 0:00:13]} 38. Qh7+ {[%emt 0:00:16]} Kf8 {[%emt 0:00:07]} 39. Qh8+ {[%emt 0:00:03]} 1-0

[Event "4NCL Hull GM 2021"]
[Site "Hull"]
[Date "2021.10.24"]
[Round "8.2"]
[White "Murphy, Conor E"]
[Black "Jackson, James P"]
[Result "0-1"]
[ECO "A30"]
[WhiteElo "2428"]
[BlackElo "2386"]
[Annotator "ChessBase"]
[PlyCount "96"]
[EventDate "2021.10.20"]
[EventType "tourn"]
[EventCountry "ENG"]
[SourceTitle "playchess.com"]
[Source "ChessBase"]
[SourceQuality "1"]
[TimeControl "5400+30"]

1. c4 {[%emt 0:10:18]} Nf6 {[%emt 0:00:51]} 2. Nc3 {[%emt 0:00:15]} c5 {[%emt 0:04:11]} 3. g3 {[%emt 0:00:44]} e6 {[%emt 0:00:13]} 4. Nf3 {[%emt 0:01:41]} b6 {[%emt 0:00:20]} 5. Bg2 {[%emt 0:01:24]} Bb7 {[%emt 0:00:05]} 6. O-O {[%emt 0:00:14]} d6 {[%emt 0:02:19]} 7. d4 {[%emt 0:04:13]} cxd4 {[%emt 0:00:07]} 8. Qxd4 {[%emt 0:00:06]} a6 {[%emt 0:00:18]} 9. b3 {[%emt 0:01:24]} Qc7 {[%emt 0:07:25]} 10. Bb2 {[%emt 0:03:18]} Nbd7 {[%emt 0:00:50]} 11. Rac1 {[%emt 0:03:14]} Be7 {[%emt 0:01:25]} 12. Rfd1 {[%emt 0:01:03]} O-O {[%emt 0:01:42]} 13. Ne1 {[%emt 0:08:39]} Bxg2 {[%emt 0:06:44]} 14. Nxg2 {[%emt 0:00:30]} Qb7 {[%emt 0:00:04]} 15. Rb1 {[%emt 0:14:07]} b5 {[%emt 0:12:54]} 16. cxb5 {[%emt 0:04:06]} axb5 {[%emt 0:00:05]} 17. a4 {[%emt 0:00:20]} b4 {[%emt 0:09:41]} 18. Nb5 {[%emt 0:01:46]} d5 {[%emt 0:00:04]} 19. Rdc1 {[%emt 0:06:07]} Rfc8 {[%emt 0:03:51]} 20. Ne3 {[%emt 0:04:16]} Bf8 {[%emt 0:01:06]} 21. Ng4 {[%emt 0:01:10]} Nxg4 {[%emt 0:06:40]} 22. Qxg4 {[%emt 0:01:41]} e5 {[%emt 0:01:12]} 23. e3 {[%emt 0:06:42]} Rxc1+ {[%emt 0:17:35]} 24. Rxc1 {[%emt 0:01:06]} Rc8 {[%emt 0:00:05]} 25. Rxc8 {[%emt 0:02:36]} Qxc8 {[%emt 0:00:46]} 26. Qf5 {[%emt 0:00:55]} g6 {[%emt 0:00:42]} 27. Qd3 {[%emt 0:01:18]} Qc6 {[%emt 0:01:53]} 28. f4 {[%emt 0:03:09]} f6 {[%emt 0:00:14]} 29. Kf1 {[%emt 0:05:21]} Kg7 {[%emt 0:01:45]} 30. Kg1 {[%emt 0:00:52]} Kf7 {[%emt 0:03:13]} 31. h4 {[%emt 0:02:06]} Bc5 {[%emt 0:03:35]} 32. h5 {[%emt 0:03:34]} Bb6 {[%emt 0:00:26]} 33. hxg6+ {[%emt 0:03:12]} hxg6 {[%emt 0:00:06]} 34. fxe5 {[%emt 0:02:50]} fxe5 {[%emt 0:00:06]} 35. Kh2 {[%emt 0:00:23]} Nf6 {[%emt 0:02:16]} 36. Qe2 {[%emt 0:02:07]} Qe6 {[%emt 0:00:48]} 37. Kg2 {[%emt 0:00:18]} Ng4 {[%emt 0:04:28]} 38. Bc1 {[%emt 0:00:26]} Nf6 {[%emt 0:00:54]} 39. Bd2 {[%emt 0:00:15]} Bc5 {[%emt 0:01:02]} 40. Qf3 {[%emt 0:00:51]} Ke7 {[%emt 0:01:06]} 41. Nc7 {[%emt 0:00:28]} Qc6 {[%emt 0:00:29]} 42. Nb5 {[%emt 0:00:10]} Ne4 {[%emt 0:00:38]} 43. Be1 {[%emt 0:00:14]} Ng5 {[%emt 0:00:35]} 44. Qg4 {[%emt 0:01:33]} Bxe3 {[%emt 0:01:04]} 45. Bxb4+ {[%emt 0:00:12]} Kf6 {[%emt 0:00:50]} 46. Kf1 {[%emt 0:01:06]} d4 {[%emt 0:02:26]} 47. Nd6 {[%emt 0:00:39]} d3 {[%emt 0:02:08]} 48. Qh4 {[%emt 0:00:59]} Qf3+ {[%emt 0:00:11]} 0-1

[Event "4NCL Hull GM 2021"]
[Site "Hull"]
[Date "2021.10.24"]
[Round "8.4"]
[White "Davies, Nigel R"]
[Black "Royal, Shreyas"]
[Result "0-1"]
[ECO "C00"]
[WhiteElo "2475"]
[BlackElo "2226"]
[Annotator "ChessBase"]
[PlyCount "84"]
[EventDate "2021.10.20"]
[EventType "tourn"]
[EventCountry "ENG"]
[SourceTitle "playchess.com"]
[Source "ChessBase"]
[SourceQuality "1"]
[TimeControl "5400+30"]

1. Nf3 {[%emt 0:00:12]} Nf6 {[%emt 0:00:06]} 2. g3 {[%emt 0:00:05]} d5 {[%emt 0:00:07]} 3. Bg2 {[%emt 0:00:05]} e6 {[%emt 0:00:12]} 4. O-O {[%emt 0:00:07]} Be7 {[%emt 0:00:08]} 5. d3 {[%emt 0:00:10]} O-O {[%emt 0:00:21]} 6. Nbd2 {[%emt 0:00:04]} c5 {[%emt 0:00:35]} 7. e4 {[%emt 0:00:06]} Nc6 {[%emt 0:00:05]} 8. Re1 {[%emt 0:00:06]} b5 {[%emt 0:00:15]} 9. Nf1 {[%emt 0:03:57]} a5 {[%emt 0:04:36]} 10. exd5 {[%emt 0:00:52]} exd5 {[%emt 0:02:28]} 11. c3 {[%emt 0:09:31]} h6 {[%emt 0:10:52]} 12. d4 {[%emt 0:06:12]} c4 {[%emt 0:00:15]} 13. Ne5 {[%emt 0:01:20]} Ra6 {[%emt 0:03:44]} 14. Ne3 {[%emt 0:07:19]} Re8 {[%emt 0:09:45]} 15. a4 {[%emt 0:02:02]} Na7 {[%emt 0:00:37]} 16. axb5 {[%emt 0:01:40]} Nxb5 {[%emt 0:00:07]} 17. Qa4 {[%emt 0:09:41]} Nc7 {[%emt 0:01:34]} 18. Bd2 {[%emt 0:02:45]} Bd6 {[%emt 0:04:49]} 19. f4 {[%emt 0:00:47]} Be6 {[%emt 0:00:50]} 20. Qc2 {[%emt 0:00:37]} Qc8 {[%emt 0:07:09]} 21. Re2 {[%emt 0:00:35]} Ng4 {[%emt 0:02:18]} 22. N5xg4 {[%emt 0:03:00]} Bxg4 {[%emt 0:01:40]} 23. Rf2 {[%emt 0:00:05]} Bh3 {[%emt 0:02:33]} 24. Bf3 {[%emt 0:02:40]} Bd7 {[%emt 0:14:49]} 25. Nxd5 {[%emt 0:00:38]} Nxd5 {[%emt 0:00:15]} 26. Bxd5 {[%emt 0:00:07]} a4 {[%emt 0:00:17]} 27. Re1 {[%emt 0:02:46]} Rxe1+ {[%emt 0:11:43]} 28. Bxe1 {[%emt 0:00:06]} Ra5 {[%emt 0:00:03]} 29. Be4 {[%emt 0:00:39]} a3 {[%emt 0:01:02]} 30. bxa3 {[%emt 0:00:16]} Rxa3 {[%emt 0:00:05]} 31. f5 {[%emt 0:06:08]} Ra1 {[%emt 0:01:05]} 32. Rf1 {[%emt 0:02:07]} Be7 {[%emt 0:00:55]} 33. Qe2 {[%emt 0:02:54]} Bg5 {[%emt 0:01:41]} 34. h4 {[%emt 0:04:09]} Bf6 {[%emt 0:00:10]} 35. Qf3 {[%emt 0:06:16]} Ra2 {[%emt 0:02:34]} 36. Bf2 {[%emt 0:02:18]} Qa6 {[%emt 0:00:51]} 37. Rb1 {[%emt 0:00:53]} Qa3 {[%emt 0:00:58]} 38. Rb8+ {[%emt 0:13:49]} Kh7 {[%emt 0:00:06]} 39. Bd5 {[%emt 0:01:12]} Qc1+ {[%emt 0:02:51]} 40. Kg2 {[%emt 0:00:06]} Qc2 {[%emt 0:00:31]} 41. Bxf7 {[%emt 0:02:19]} Qxf5 {[%emt 0:00:45]} 42. h5 {[%emt 0:01:07]} Qh3+ {[%emt 0:00:30]} 0-1

[Event "4NCL Hull GM 2021"]
[Site "Hull"]
[Date "2021.10.24"]
[Round "8.5"]
[White "Czopor, Maciej"]
[Black "Turner, Matthew J"]
[Result "0-1"]
[ECO "C65"]
[WhiteElo "2411"]
[BlackElo "2471"]
[Annotator "ChessBase"]
[PlyCount "78"]
[EventDate "2021.10.20"]
[EventType "tourn"]
[EventCountry "ENG"]
[SourceTitle "playchess.com"]
[Source "ChessBase"]
[SourceQuality "1"]
[TimeControl "5400+30"]

1. e4 {[%emt 0:00:04]} e5 {[%emt 0:00:23]} 2. Nf3 {[%emt 0:00:05]} Nc6 {[%emt 0:00:03]} 3. Bb5 {[%emt 0:00:36]} Nf6 {[%emt 0:01:05]} 4. d3 {[%emt 0:00:49]} Bc5 {[%emt 0:00:57]} 5. O-O {[%emt 0:00:17]} d6 {[%emt 0:02:33]} 6. c3 {[%emt 0:01:14]} O-O {[%emt 0:00:56]} 7. h3 {[%emt 0:02:12]} Bb6 {[%emt 0:00:55]} 8. Ba4 {[%emt 0:02:28]} Ne7 {[%emt 0:01:33]} 9. Nbd2 {[%emt 0:00:41]} Ng6 {[%emt 0:00:30]} 10. Nc4 {[%emt 0:00:29]} h6 {[%emt 0:02:05]} 11. Re1 {[%emt 0:02:33]} Be6 {[%emt 0:08:27]} 12. Nxb6 {[%emt 0:03:01]} axb6 {[%emt 0:00:10]} 13. Bc2 {[%emt 0:08:13]} Nh7 {[%emt 0:04:10]} 14. d4 {[%emt 0:01:42]} Qf6 {[%emt 0:02:23]} 15. Be3 {[%emt 0:04:52]} Ng5 {[%emt 0:06:33]} 16. Nxg5 {[%emt 0:00:27]} hxg5 {[%emt 0:00:04]} 17. d5 {[%emt 0:22:25]} Bd7 {[%emt 0:00:34]} 18. g3 {[%emt 0:00:58]} Nf4 {[%emt 0:02:25]} 19. gxf4 {[%emt 0:00:46]} gxf4 {[%emt 0:00:06]} 20. Bd2 {[%emt 0:02:17]} Qh4 {[%emt 0:05:59]} 21. Qe2 {[%emt 0:06:04]} g5 {[%emt 0:03:27]} 22. f3 {[%emt 0:00:39]} Kg7 {[%emt 0:00:41]} 23. Qf2 {[%emt 0:05:07]} Qxh3 {[%emt 0:00:35]} 24. Qg2 {[%emt 0:07:19]} Rh8 {[%emt 0:05:45]} 25. Kf2 {[%emt 0:06:37]} g4 {[%emt 0:11:02]} 26. fxg4 {[%emt 0:01:31]} Qh4+ {[%emt 0:04:10]} 27. Kf3 {[%emt 0:00:18]} Qh3+ {[%emt 0:00:17]} 28. Kf2 {[%emt 0:01:34]} Qh4+ {[%emt 0:00:50]} 29. Ke2 {[%emt 0:03:52]} Qh2 {[%emt 0:06:36]} 30. Rg1 {[%emt 0:02:52]} Rh3 {[%emt 0:02:42]} 31. Kd1 {[%emt 0:04:01]} Qxg2 {[%emt 0:03:12]} 32. Rxg2 {[%emt 0:00:05]} Rah8 {[%emt 0:00:24]} 33. Rg1 {[%emt 0:05:05]} Rh1 {[%emt 0:02:23]} 34. Ke2 {[%emt 0:01:32]} R8h2+ {[%emt 0:00:36]} 35. Kd3 {[%emt 0:00:11]} Bb5+ {[%emt 0:00:45]} 36. c4 {[%emt 0:00:07]} Rh3+ {[%emt 0:00:11]} 37. Ke2 {[%emt 0:00:11]} Bxc4+ {[%emt 0:03:25]} 38. Kf2 {[%emt 0:00:06]} R3h2+ {[%emt 0:00:16]} 39. Kf3 {[%emt 0:00:41]} Be2# {[%emt 0:00:13]} 0-1

[Event "4NCL Hull GM 2021"]
[Site "Hull"]
[Date "2021.10.31"]
[Round "9.1"]
[White "Turner, Matthew J"]
[Black "Willow, Jonah B"]
[Result "1-0"]
[ECO "D02"]
[WhiteElo "2471"]
[BlackElo "2353"]
[Annotator "ChessBase"]
[PlyCount "73"]
[EventDate "2021.10.20"]
[EventType "tourn"]
[EventCountry "ENG"]
[SourceTitle "playchess.com"]
[Source "ChessBase"]
[SourceQuality "1"]
[TimeControl "5400+30"]

1. d4 {[%emt 0:00:05]} d5 {[%emt 0:00:14]} 2. Nf3 {[%emt 0:00:55]} Nf6 {[%emt 0:00:07]} 3. Bf4 {[%emt 0:00:59]} c5 {[%emt 0:00:28]} 4. e3 {[%emt 0:02:04]} Nc6 {[%emt 0:00:10]} 5. c3 {[%emt 0:00:39]} Bg4 {[%emt 0:00:13]} 6. Qb3 {[%emt 0:01:11]} Qc8 {[%emt 0:00:28]} 7. Ne5 {[%emt 0:00:50]} c4 {[%emt 0:00:55]} 8. Qa4 {[%emt 0:00:41]} Bd7 {[%emt 0:00:56]} 9. Nxd7 {[%emt 0:00:13]} Nxd7 {[%emt 0:04:18]} 10. Nd2 {[%emt 0:04:01]} a6 {[%emt 0:10:02]} 11. Be2 {[%emt 0:01:39]} Nf6 {[%emt 0:02:01]} 12. O-O {[%emt 0:02:17]} e6 {[%emt 0:01:36]} 13. Bf3 {[%emt 0:00:48]} Be7 {[%emt 0:02:19]} 14. e4 {[%emt 0:00:40]} O-O {[%emt 0:01:30]} 15. h3 {[%emt 0:01:53]} Re8 {[%emt 0:05:25]} 16. Rae1 {[%emt 0:02:43]} b5 {[%emt 0:03:10]} 17. Qc2 {[%emt 0:00:13]} Qd8 {[%emt 0:05:56]} 18. Re2 {[%emt 0:01:24]} Qa5 {[%emt 0:01:24]} 19. exd5 {[%emt 0:03:19]} Nxd5 {[%emt 0:02:22]} 20. Bxd5 {[%emt 0:00:27]} exd5 {[%emt 0:00:01]} 21. Rfe1 {[%emt 0:00:26]} Qd8 {[%emt 0:00:59]} 22. Qf5 {[%emt 0:02:07]} g6 {[%emt 0:01:53]} 23. Qg4 {[%emt 0:00:19]} h5 {[%emt 0:17:55]} 24. Qf3 {[%emt 0:00:40]} Qd7 {[%emt 0:00:16]} 25. Nf1 {[%emt 0:03:30]} Rad8 {[%emt 0:05:08]} 26. Bh6 {[%emt 0:10:22]} Qd6 {[%emt 0:15:34]} 27. g4 {[%emt 0:06:55]} hxg4 {[%emt 0:02:37]} 28. hxg4 {[%emt 0:00:06]} Qd7 {[%emt 0:07:05]} 29. Kg2 {[%emt 0:05:38]} f6 {[%emt 0:03:22]} 30. g5 {[%emt 0:04:22]} f5 {[%emt 0:01:08]} 31. Ng3 {[%emt 0:01:30]} Kf7 {[%emt 0:00:08]} 32. Nh5 {[%emt 0:00:48]} Rg8 {[%emt 0:03:09]} 33. Nf4 {[%emt 0:00:26]} Bf8 {[%emt 0:03:25]} 34. Re6 {[%emt 0:01:14]} Bxh6 {[%emt 0:00:31]} 35. Rf6+ {[%emt 0:00:39]} Kg7 {[%emt 0:00:01]} 36. Rxg6+ {[%emt 0:00:14]} Kf7 {[%emt 0:00:23]} 37. Rf6+ {[%emt 0:00:10]} 1-0

[Event "4NCL Hull GM 2021"]
[Site "Hull"]
[Date "2021.10.31"]
[Round "9.4"]
[White "Jackson, James P"]
[Black "Wadsworth, Matthew J"]
[Result "1/2-1/2"]
[ECO "B48"]
[WhiteElo "2386"]
[BlackElo "2425"]
[Annotator "ChessBase"]
[PlyCount "86"]
[EventDate "2021.10.20"]
[EventType "tourn"]
[EventCountry "ENG"]
[SourceTitle "playchess.com"]
[Source "ChessBase"]
[SourceQuality "1"]
[TimeControl "5400+30"]

1. e4 {[%emt 0:00:04]} c5 {[%emt 0:02:50]} 2. Nf3 {[%emt 0:00:06]} e6 {[%emt 0:00:04]} 3. d4 {[%emt 0:00:04]} cxd4 {[%emt 0:00:03]} 4. Nxd4 {[%emt 0:00:06]} Nc6 {[%emt 0:00:03]} 5. Nc3 {[%emt 0:00:06]} Qc7 {[%emt 0:00:05]} 6. Be3 {[%emt 0:00:06]} a6 {[%emt 0:00:04]} 7. g4 {[%emt 0:00:11]} b5 {[%emt 0:00:57]} 8. Nxc6 {[%emt 0:00:10]} Qxc6 {[%emt 0:00:21]} 9. Qd2 {[%emt 0:00:30]} Nf6 {[%emt 0:06:16]} 10. f3 {[%emt 0:05:24]} Bb7 {[%emt 0:03:08]} 11. g5 {[%emt 0:01:36]} Nh5 {[%emt 0:02:56]} 12. Ne2 {[%emt 0:03:55]} Rc8 {[%emt 0:01:43]} 13. O-O-O {[%emt 0:04:33]} Bb4 {[%emt 0:01:02]} 14. c3 {[%emt 0:01:53]} Be7 {[%emt 0:03:41]} 15. Kb1 {[%emt 0:00:38]} d5 {[%emt 0:01:44]} 16. Nd4 {[%emt 0:08:23]} Qc7 {[%emt 0:00:27]} 17. e5 {[%emt 0:04:35]} g6 {[%emt 0:04:25]} 18. f4 {[%emt 0:00:22]} Ng7 {[%emt 0:01:17]} 19. Bd3 {[%emt 0:06:27]} Bc6 {[%emt 0:02:23]} 20. h4 {[%emt 0:01:10]} Qb7 {[%emt 0:04:24]} 21. h5 {[%emt 0:08:15]} Nxh5 {[%emt 0:00:35]} 22. f5 {[%emt 0:12:43]} Bd7 {[%emt 0:00:11]} 23. f6 {[%emt 0:02:08]} Bf8 {[%emt 0:00:31]} 24. Rxh5 {[%emt 0:02:53]} gxh5 {[%emt 0:00:02]} 25. Qe2 {[%emt 0:00:19]} Qb8 {[%emt 0:02:02]} 26. Bf4 {[%emt 0:00:41]} b4 {[%emt 0:00:50]} 27. c4 {[%emt 0:07:42]} Bc5 {[%emt 0:01:12]} 28. Nb3 {[%emt 0:00:26]} dxc4 {[%emt 0:00:32]} 29. Bxc4 {[%emt 0:00:05]} Bb5 {[%emt 0:01:46]} 30. Bxb5+ {[%emt 0:02:16]} axb5 {[%emt 0:00:02]} 31. Rc1 {[%emt 0:03:56]} Ba7 {[%emt 0:00:40]} 32. Rxc8+ {[%emt 0:00:27]} Qxc8 {[%emt 0:00:01]} 33. Qxb5+ {[%emt 0:00:10]} Qd7 {[%emt 0:00:06]} 34. Qxb4 {[%emt 0:00:05]} h4 {[%emt 0:01:42]} 35. Nd2 {[%emt 0:07:41]} h3 {[%emt 0:01:08]} 36. Qa3 {[%emt 0:02:55]} h2 {[%emt 0:01:05]} 37. Bxh2 {[%emt 0:06:15]} h6 {[%emt 0:00:13]} 38. Bf4 {[%emt 0:04:19]} hxg5 {[%emt 0:00:43]} 39. Ne4 {[%emt 0:00:16]} Bb8 {[%emt 0:06:16]} 40. Bc1 {[%emt 0:00:58]} Bxe5 {[%emt 0:00:58]} 41. Qa8+ {[%emt 0:02:21]} Qd8 {[%emt 0:00:05]} 42. Qc6+ {[%emt 0:00:05]} Qd7 {[%emt 0:00:07]} 43. Qa8+ {[%emt 0:00:05]} Qd8 {[%emt 0:00:05]} 1/2-1/2